[Event "Romanian Superliga 2024"]
[Site "Mamaia"]
[Date "2024.10.01"]
[Round "4.30"]
[White "Nastore, Pavel-Alexandru"]
[Black "Radu, David Cr."]
[Result "1-0"]
[ECO "C88"]
[WhiteElo "2252"]
[BlackElo "2159"]
[Annotator "RC"]
[PlyCount "79"]
[EventDate "2024.09.26"]
[EventType "team-tourn"]
[EventCountry "ROU"]
[SourceTitle "playchess.com"]
[Source "ChessBase"]
[SourceQuality "1"]
[TimeControl "40/5400+30:1800+30"]

1. e4 {[%emt 0:00:21]} e5 {[%emt 0:00:22]} 2. Nf3 {[%emt 0:00:06]} Nc6 {[%emt 0:00:05]} 3. Bb5 {[%emt 0:00:04]} a6 {[%emt 0:00:06]} 4. Ba4 {[%emt 0:00:03]} Nf6 {[%emt 0:00:07]} 5. O-O {[%emt 0:00:04]} Be7 {[%emt 0:00:22]} 6. Re1 {[%emt 0:00:07]} b5 {[%emt 0:00:05]} 7. Bb3 {[%emt 0:00:02]} O-O {[%emt 0:00:19]} 8. d3 {[%emt 0:02:54]} d6 {[%emt 0:02:15]} 9. a4 {[%emt 0:01:40]} Bb7 {[%emt 0:02:20]} 10. Nc3 {[%emt 0:09:45]} b4 {[%emt 0:15:10]} 11. Ne2 {[%emt 0:00:16]} Re8 {[%emt 0:08:11]} 12. Ng3 {[%emt 0:01:15]} g6 {[%emt 0:03:15]} 13. Bg5 {[%emt 0:08:14]} Bc8 {[%emt 0:18:41]} 14. h3 {[%emt 0:14:30]} Na5 {[%emt 0:01:38]} 15. Ba2 {[%emt 0:00:04]} c5 {[%emt 0:00:59]} 16. c3 {[%emt 0:01:34]} Rb8 {[%emt 0:00:56]} 17. d4 {[%emt 0:00:39]} Qc7 {[%emt 0:18:38]} 18. cxb4 {[%emt 0:15:56]} Rxb4 {[%emt 0:00:30]} 19. dxe5 {[%emt 0:02:29]} dxe5 {[%emt 0:02:41]} 20. Bd2 {[%emt 0:00:18]} c4 {[%emt 0:05:38]} 21. Bxb4 {[%emt 0:04:02]} Bxb4 {[%emt 0:00:03]} 22. Re2 {[%emt 0:00:10]} Nd7 {[%emt 0:00:48]} 23. Nf1 {[%emt 0:01:51]} Bb7 {[%emt 0:02:14]} 24. Qc2 {[%emt 0:01:57]} Rc8 {[%emt 0:12:41]} 25. Rc1 {[%emt 0:01:49]} Nb6 {[%emt 0:01:03]} 26. Ne3 {[%emt 0:01:23]} Qe7 {[%emt 0:02:30]} 27. Nd2 {[%emt 0:02:00]} Nc6 {[%emt 0:00:09]} 28. Nf3 {[%emt 0:01:56]} Na5 {[%emt 0:00:45]} 29. Qb1 {[%emt 0:07:53]} Kg7 {[%emt 0:01:04]} 30. Nd2 {[%emt 0:02:41]} Qe6 {[%emt 0:00:45]} 31. Ndxc4 {[%emt 0:03:04]} Naxc4 {[%emt 0:00:36]} 32. Nxc4 {[%emt 0:00:03]} Rxc4 {[%emt 0:00:48]} 33. Rxc4 {[%emt 0:00:16]} Nxc4 {[%emt 0:00:07]} 34. Qc1 {[%emt 0:00:39]} a5 {[%emt 0:00:59]} 35. Qxc4 {[%emt 0:01:42]} Qf6 {[%emt 0:00:07]} 36. Re3 {[%emt 0:01:03]} Ba6 {[%emt 0:00:07]} 37. Qd5 {[%emt 0:00:28]} Qe7 {[%emt 0:00:04]} 38. Rf3 {[%emt 0:00:32]} f6 {[%emt 0:00:02]} 39. Qg8+ {[%emt 0:00:48]} Kh6 {[%emt 0:00:04]} 40. Qe6 {[%emt 0:00:00]} 1-0

[Event "Romanian Superliga 2024"]
[Site "Mamaia"]
[Date "2024.10.02"]
[Round "5.1"]
[White "Mendonca, Leon Luke"]
[Black "Shevchenko, Kirill"]
[Result "1/2-1/2"]
[ECO "B67"]
[WhiteElo "2622"]
[BlackElo "2673"]
[Annotator "TA"]
[PlyCount "86"]
[EventDate "2024.09.26"]
[EventType "team-tourn"]
[EventCountry "ROU"]
[SourceTitle "playchess.com"]
[Source "ChessBase"]
[SourceQuality "1"]
[TimeControl "40/5400+30:1800+30"]

{[%evp 63,86,-118,-114,-97,-116,-88,-41,-56,0,-56,0,0,0,-51,0,0,0,0,0,0,0,0,0,0,0]} 1. e4 {[%emt 0:01:26]} c5 {[%emt 0:00:06]} 2. Nf3 {[%emt 0:00:23]} Nc6 {[%emt 0:00:08]} 3. d4 {[%emt 0:00:36]} cxd4 {[%emt 0:00:06]} 4. Nxd4 {[%emt 0:00:09]} Nf6 {[%emt 0:00:04]} 5. Nc3 {[%emt 0:00:15]} d6 {[%emt 0:02:04]} 6. Bg5 {[%emt 0:00:33]} e6 {[%emt 0:00:08]} 7. Qd2 {[%emt 0:00:23]} a6 {[%emt 0:00:18]} 8. O-O-O {[%emt 0:00:40]} Bd7 {[%emt 0:00:54]} 9. Kb1 {[%emt 0:01:35]} Be7 {[%emt 0:02:23] B67: Sicilian: Richter-Rauzer: 7...a6 8 0-0-0 Bd7, lines without 9 f4 Be7.} 10. Nxc6 {[%emt 0:02:09]} Bxc6 {[%emt 0:00:06]} 11. f3 {[%emt 0:00:10]} Qc7 $1 {[%emt 0:00:30][%mdl 4] is now more promising than 11...b5.} 12. h4 {[%emt 0:10:56]} h6 {[%emt 0:07:56]} 13. Bf4 {[%emt 0:02:58]} Rd8 {[%emt 0:00:59]} 14. Qf2 {[%emt 0:00:39]} b5 {[%emt 0:12:47]} 15. Bd3 $146 {[%emt 0:11:17]} ({Predecessor:} 15. g4 Rc8 16. a3 Nd7 17. Rg1 Rb8 18. Na2 a5 19. g5 hxg5 20. hxg5 b4 21. axb4 axb4 {½-½ Whelan,H (2137)-Bulbarela Garcia,C (2353) WZ-ch sf26 email 2021}) 15... Nd7 {[%emt 0:03:31]} 16. g4 {[%emt 0:08:13]} Ne5 {[%emt 0:08:09]} 17. Be3 {[%emt 0:14:23]} Rc8 {[%emt 0:01:40]} 18. Bd4 {[%emt 0:05:14]} b4 {[%emt 0:06:27]} 19. Ne2 {[%emt 0:02:03]} Nxd3 {[%emt 0:07:01]} 20. cxd3 {[%emt 0:00:14]} O-O {[%emt 0:00:18]} 21. Ng3 {[%emt 0:02:38]} Bd7 {[%emt 0:03:20]} 22. b3 {[%emt 0:13:00]} a5 {[%emt 0:06:08]} 23. g5 {[%emt 0:02:18]} e5 {[%emt 0:02:37]} 24. Bb2 {[%emt 0:01:26]} a4 {[%emt 0:05:06]} 25. gxh6 {[%emt 0:04:49]} axb3 {[%emt 0:01:10]} 26. axb3 {[%emt 0:00:09]} g6 {[%emt 0:00:54]} 27. Rc1 {[%emt 0:02:46]} Qa5 {[%emt 0:01:06]} 28. Rc4 {[%emt 0:03:01]} Kh7 {[%emt 0:03:01]} 29. f4 {[%emt 0:02:36]} Be6 {[%emt 0:06:44]} 30. f5 {[%emt 0:01:29]} Bxc4 {[%emt 0:04:56]} 31. dxc4 {[%emt 0:00:04]} Ra8 {[%emt 0:00:04]} 32. Qf3 {[%emt 0:04:48]} (32. h5 $1 $15 Qa7 (32... Kxh6 33. hxg6+)) 32... Bf6 {[%emt 0:02:36]} (32... Kxh6 $2 33. f6 Bd8 (33... Qa2+ $2 34. Kc2 $18) 34. h5 $18) (32... Qa2+ $6 33. Kc2 $11) 33. fxg6+ {[%emt 0:00:58]} fxg6 {[%emt 0:00:02]} (33... Kxh6 34. Qh5+ Kg7 35. Qh7#) 34. h5 {[%emt 0:00:12] [#]} g5 {[%emt 0:01:22]} (34... Kxh6 35. hxg6+ Kg7 36. Nh5+ Kxg6 37. Qf5+ Kf7 38. Qd7+ (38. Nxf6 Qa2+ 39. Kc2 Qxb2+ 40. Kxb2 Ra2+ 41. Kxa2 Ra8+ 42. Kb2 Kg7 43. Rh7+ Kf8 44. Nd7+ Kg8 45. Qg6#) (38. Qxf6+ Ke8 $18) 38... Be7 39. Rf1+ Kg6 40. Rg1+ (40. Qg4+ Bg5 $18) 40... Kh6 41. Bc1+ (41. Qxe7 Qa2+ 42. Kc1 Qa1+ 43. Bxa1 Rxa1+ 44. Kb2 Rxg1 45. Qxf8+ Kxh5 46. Qh8+ Kg5) (41. Qe6+ Rf6 42. Bc1+ Kh7 43. Nxf6+ Bxf6 44. Qh3+ Bh4 45. Qxh4#) (41. Qxe7 Qa2+ 42. Kc1 Qa1+ 43. Bxa1 Rxa1+ 44. Kb2 Rxg1 45. Qxf8+ Kxh5 46. Qh8+ Kg4) (41. Qe6+ Rf6 42. Bc1+ Kh7 43. Nxf6+ Bxf6 44. Qh3+ Bh4 45. Qxh4#)) (34... Qa2+ $6 35. Kc2 gxh5 (35... Kxh6 36. hxg6+ Kg7 37. Rh7+ Kg8 38. Nf5) 36. Ra1 Qxa1 37. Bxa1 Rxa1 38. c5 $11 (38. Qxh5 Bd8 $11) (38. Nxh5 $2 Bg7 $19) (38. Qxh5 Bd8 $11) (38. Nxh5 $2 Bg7 $19)) ({Black should try} 34... gxh5 $1 $17 {...Qa7 is the strong threat.} 35. Qxh5 (35. Qf5+ Kh8 $15) 35... Be7 (35... Qa2+ 36. Kc2 $11)) 35. Rd1 {[%emt 0:00:09]} Qa7 {[%emt 0:04:18]} (35... Kxh6 $2 36. Rxd6 Kg7 37. Qf5 $18 (37. h6+ Kg8 $18)) (35... Qa2+ 36. Kc2 $11) (35... Be7 $15 36. Nf5 Qa2+ 37. Kc2 Qa7) 36. Nf5 {[%emt 0:00:41] [#]} (36. Qf5+ $11 Kh8 37. Rxd6 Qa2+ 38. Kc2) 36... g4 {[%emt 0:01:41]} (36... Qa2+ 37. Kc2 Qa7 38. Rf1 $11 (38. Rxd6 Rad8 $11) (38. Nxd6 Bg7 $11)) (36... Be7 $1 $15) 37. Qxg4 $11 {[%emt 0:02:43]} Rg8 {[%emt 0:01:06]} 38. Ng7 {[%emt 0:00:30]} (38. Qf3 $11) 38... Qe3 {[%emt 0:03:38]} (38... Qa2+ 39. Kc2 Ra3 40. Rd3 $11) (38... Be7 $15 39. Rg1 Bh4) 39. Qg6+ {[%emt 0:00:54]} (39. Rxd6 Qxb3 40. Qg6+ (40. Rxf6 Qd3+ 41. Kc1 Qe3+ 42. Kb1 Qe1+ 43. Kc2 b3+ 44. Kxb3 Rgb8+ 45. Kc2 Rxb2+ 46. Kxb2 Qd2+ 47. Kb3 Rb8+) 40... Kh8 41. Qxf6 Qa2+ (41... Qxc4 42. Ne6+ Kh7 43. Rd7+) (41... Rgf8 42. Ne8+ Rxf6 43. Nxf6 $19) 42. Kc1 Rgf8 43. Bxe5 Qxc4+ 44. Kd1 Rxf6 45. Bxf6 Qf1+ (45... Qxe4 46. Nf5+ Kg8 47. h7+ Kxh7 48. Rd7+ Kg8 49. Rg7+ Kf8 50. Be7+ $14) 46. Kd2 Qf4+ 47. Kc2 Qh2+ (47... Qxd6 48. Ne8+ $11) (47... Qxe4+ $2 48. Kb3 $19) (47... Qf2+ $2 48. Kd3 $19) 48. Kb1 Qa2+ (48... Qxd6 49. Ne8+ $11) 49. Kc1 Rc8+ 50. Kd1 Qc2+ 51. Ke1 Qxe4+ 52. Kd1 Qf3+ 53. Kd2 Qf4+ 54. Kd3 Qxd6+ 55. Bd4 Kh7 (55... Qxh6 56. Nf5+ Kh7 57. Nxh6 $19) 56. Ke4 Qxh6 57. Kd5 Qc6+ 58. Ke5 Kxg7 (58... Qc7+ 59. Kf5 Qd7+ 60. Ke4 Qg4+ 61. Ke3 Rc1 62. Kd3 Qf3+ 63. Be3 Rc3+ 64. Kd4 Qxe3+ 65. Kd5 Kxg7 66. Kd6 Kf6 67. Kd7 Qe7#) 59. Kf4+ Kh7 60. Be3 Qd5 61. Kg3 Qe4 (61... Qxh5 62. Kf4 Rc4+ 63. Bd4 Rxd4+ 64. Ke3 Qe5+ 65. Kf3 Rf4+ 66. Kg2 Qg5+ 67. Kh3 Rh4#) 62. Bg5 Rg8 63. Kf2 Rxg5 64. Kf1 Rg2 65. h6 Qe2#) 39... Kh8 {[%emt 0:00:00]} 40. Qxf6 {[%emt 0:00:00]} (40. Rxd6 $2 {perishes.} Be7 41. Rd7 Qxb3 $19) 40... Qxe4+ {[%emt 0:00:00]} 41. Kc1 {[%emt 0:00:59]} Qe3+ {[%emt 0:01:15]} 42. Kb1 {[%emt 0:13:08]} (42. Rd2 $5 Qe1+ $8 43. Rd1 Qe3+ 44. Kb1 Qe4+ 45. Kc1 Qe3+ $11) 42... Qe4+ {[%emt 0:00:15]} 43. Kc1 {[%emt 0:00:01]} Qe3+ {[%emt 0:00:01]} 1/2-1/2

[Event "Romanian Superliga 2024"]
[Site "Mamaia"]
[Date "2024.10.02"]
[Round "5.2"]
[White "Lupulescu, Constantin"]
[Black "Aryan Chopra"]
[Result "1-0"]
[ECO "D35"]
[WhiteElo "2590"]
[BlackElo "2620"]
[Annotator "TA"]
[PlyCount "119"]
[EventDate "2024.09.26"]
[EventType "team-tourn"]
[EventCountry "ROU"]
[SourceTitle "playchess.com"]
[Source "ChessBase"]
[SourceQuality "1"]
[TimeControl "40/5400+30:1800+30"]

{[%evp 9,119,19,37,27,38,35,26,10,22,22,20,17,53,49,69,60,80,81,77,74,110,108,95,98,102,98,106,93,94,97,102,102,112,102,106,65,104,101,110,110,119,102,103,71,92,76,81,74,107,90,112,112,115,116,137,114,120,70,85,83,88,84,110,118,115,122,158,154,164,164,292,309,304,285,306,310,314,311,315,296,364,283,1204,1196,1131,974,971,556,1397,1155,29959,29961,29957,29962,29957,0,29959,29962,29961,29962,29955,29960,29977,29978,29978,29979,29979,29980,29981,29982,29982,29983]} 1. c4 {[%emt 0:00:03]} e6 {[%emt 0:00:08]} 2. Nc3 {[%emt 0:00:06]} d5 {[%emt 0:00:04]} 3. d4 {[%emt 0:00:15]} Nf6 {[%emt 0:00:06]} 4. cxd5 {[%emt 0:00:15]} exd5 {[%emt 0:00:08]} 5. Bg5 {[%emt 0:00:17]} Bb4 {[%emt 0:00:12]} 6. Qb3 {[%emt 0:00:48]} a5 {[%emt 0:09:28]} 7. a3 {[%emt 0:00:51]} Bxc3+ {[%emt 0:00:05]} 8. Qxc3 {[%emt 0:00:27] White has an edge.} c6 {[%emt 0:00:05]} 9. e3 {[%emt 0:03:43]} h6 {[%emt 0:02:52]} 10. Bh4 {[%emt 0:01:53]} a4 {[%emt 0:09:32]} 11. Bd3 {[%emt 0:02:55]} Be6 {[%emt 0:05:52]} 12. Qb4 {[%emt 0:16:56]} Qa5 {[%emt 0:07:38]} 13. Bxf6 {[%emt 0:05:21]} gxf6 {[%emt 0:01:32]} 14. Ne2 {[%emt 0:02:29]} Rg8 {[%emt 0:09:16]} 15. g3 {[%emt 0:19:17]} (15. O-O {simplifies} Qxb4 16. axb4 Ke7 17. b5) 15... Kd7 {[%emt 0:12:51][%cal Be8d7,Bd7c7,Bc7d6][%mdl 32]} 16. Kd2 {[%emt 0:03:58]} (16. Qxa5 {simplifies} Rxa5 17. Rc1 Kc7 18. f3) 16... Kc7 {[%emt 0:02:07]} 17. Rhc1 {[%emt 0:04:43]} Nd7 {[%emt 0:00:52]} 18. Nf4 {[%emt 0:01:00]} Qxb4+ {[%emt 0:07:24]} 19. axb4 {[%emt 0:00:04]} Kd6 {[%emt 0:00:05]} 20. Ra3 {[%emt 0:06:05]} b5 {[%emt 0:01:19]} 21. Rca1 {[%emt 0:09:39] White has more active pieces.} Nb6 {[%emt 0:01:20]} 22. b3 {[%emt 0:00:56] Prevents Nc4+} Bg4 {[%emt 0:09:07]} 23. bxa4 {[%emt 0:03:10]} Rxa4 {[%emt 0:01:00]} 24. Rxa4 {[%emt 0:00:18]} bxa4 {[%emt 0:01:39]} 25. Kc3 {[%emt 0:01:14]} Ra8 {[%emt 0:00:31]} 26. Bc2 {[%emt 0:08:08]} (26. Rc1 {looks sharper.} a3 27. h3 a2 28. Ra1) 26... Ke7 {[%emt 0:03:03]} 27. Ra2 {[%emt 0:00:32]} Bc8 {[%emt 0:01:15]} 28. Nd3 {[%emt 0:01:40]} Bf5 {[%emt 0:01:58]} 29. Bd1 {[%emt 0:00:36]} Bxd3 {[%emt 0:05:28]} 30. Kxd3 $16 {[%emt 0:00:04][%mdl 4096] Endgame. KRB-KRN} f5 {[%emt 0:00:12]} 31. Kc3 {[%emt 0:01:16]} Ke6 {[%emt 0:02:27]} 32. Be2 {[%emt 0:01:13]} Nc8 {[%emt 0:04:45]} 33. Rc2 {[%emt 0:01:35]} (33. b5 $16) 33... Nd6 {[%emt 0:00:28]} 34. Kb2 {[%emt 0:00:34]} Kd7 {[%emt 0:01:12]} 35. Ka3 {[%emt 0:00:26]} Ne4 {[%emt 0:01:17]} 36. Bd3 {[%emt 0:00:32]} h5 {[%emt 0:00:16]} 37. h4 {[%emt 0:01:39]} Kd6 {[%emt 0:00:34]} 38. Bxe4 {[%emt 0:02:46]} fxe4 {[%emt 0:00:02] KR-KR} 39. Rc5 {[%emt 0:00:06]} f5 {[%emt 0:01:11]} (39... Re8 {might work better.} 40. Kxa4 Rb8) 40. Ra5 $18 {[%emt 0:00:00]} Rg8 {[%emt 0:00:00]} 41. Kxa4 {[%emt 0:10:58]} (41. Rxa4 f4 42. gxf4 (42. exf4 e3 $14) 42... Rg2 $16) 41... f4 {[%emt 0:00:55]} 42. exf4 {[%emt 0:01:47]} (42. gxf4 Rg1 43. b5 Ra1+ 44. Kb4 Rb1+ 45. Kc3 cxb5 46. Ra6+ Kd7) 42... e3 {[%emt 0:00:47]} 43. fxe3 {[%emt 0:00:08] [#] Hoping for Ra6.} Rxg3 {[%emt 0:00:07]} 44. Ra6 {[%emt 0:00:54] Black must now prevent b5.} ({Not} 44. f5 Rxe3 45. Ra6 Re1 $11) 44... Kd7 {[%emt 0:06:20]} 45. b5 {[%emt 0:07:05]} cxb5+ {[%emt 0:00:25]} (45... Rxe3 46. bxc6+ (46. Rxc6 Re4 $11) 46... Kd6) 46. Kxb5 {[%emt 0:00:04]} Rxe3 {[%emt 0:00:07]} 47. Kc5 {[%emt 0:03:18]} Rh3 {[%emt 0:04:48]} 48. Kxd5 {[%emt 0:00:11] And now Ra7+ would win.} Rxh4 {[%emt 0:03:45]} 49. Ra7+ {[%emt 0:00:52]} Ke8 {[%emt 0:01:17]} 50. Ke6 {[%emt 0:07:17][%cal Ra7a8]} Kf8 {[%emt 0:00:02]} 51. d5 {[%emt 0:01:48]} Rxf4 {[%emt 0:10:53] [#]} 52. Ra8+ $1 {[%emt 0:00:06]} Kg7 {[%emt 0:00:01]} 53. d6 {[%emt 0:00:05] White mates.} Rf6+ {[%emt 0:00:09]} 54. Kd5 {[%emt 0:00:08]} Rf7 {[%emt 0:00:12]} 55. Kc6 {[%emt 0:00:04]} Kg6 {[%emt 0:00:40]} 56. Ra5 {[%emt 0:01:19]} h4 {[%emt 0:00:35][%cal Bh5h4,Bh4h3][%mdl 32]} 57. d7 {[%emt 0:00:07]} Rf8 {[%emt 0:00:03]} 58. Kc7 {[%emt 0:00:06]} h3 {[%emt 0:00:10]} 59. d8=Q {[%emt 0:00:19]} ({And not} 59. d8=B h2 60. Ra1 Rh8 $11) 59... Rxd8 {[%emt 0:00:07]} 60. Kxd8 {[%emt 0:00:04] Weighted Error Value: White=0.14 (very precise) /Black=0.23 (precise) .  Mistake:       	White=1     	Black=2      Inaccurate:     	White=2     	Black=6      OK:         	White=14    	Black=14     Best:        	White=2     	Black=1} 1-0

[Event "Romanian Superliga 2024"]
[Site "Mamaia"]
[Date "2024.10.02"]
[Round "5.3"]
[White "Nisipeanu, Liviu-Dieter"]
[Black "Motylev, Alexander"]
[Result "1-0"]
[ECO "B50"]
[WhiteElo "2580"]
[BlackElo "2582"]
[Annotator "TA"]
[PlyCount "73"]
[EventDate "2024.09.26"]
[EventType "team-tourn"]
[EventCountry "ROU"]
[SourceTitle "playchess.com"]
[Source "ChessBase"]
[SourceQuality "1"]
[TimeControl "40/5400+30:1800+30"]

{[%evp 9,73,4,0,0,0,0,0,0,4,3,9,-5,2,0,0,-18,-5,-10,0,-25,-6,-17,-11,-4,13,18,29,7,4,-7,0,0,0,0,25,0,0,0,11,0,20,-9,0,0,0,0,81,77,55,51,559,575,645,556,645,656,725,646,778,781,903,816,29988,29989,29998,29999]} 1. e4 {[%emt 0:00:04]} c5 {[%emt 0:00:15]} 2. Nf3 {[%emt 0:01:20]} d6 {[%emt 0:00:23]} 3. Bc4 {[%emt 0:02:40]} Nf6 {[%emt 0:00:41]} 4. d3 {[%emt 0:00:10]} a6 {[%emt 0:00:05]} 5. O-O {[%emt 0:02:17]} e6 {[%emt 0:00:45]} 6. Bb3 {[%emt 0:00:38]} b5 {[%emt 0:01:48]} 7. Re1 {[%emt 0:07:46]} Bb7 {[%emt 0:00:31]} 8. c3 {[%emt 0:00:38] The position is equal.} Be7 {[%emt 0:00:24]} 9. Bc2 {[%emt 0:00:39]} Nbd7 {[%emt 0:01:07]} 10. Nbd2 {[%emt 0:06:20][%cal Bb1d2,Bd2f1,Bf1g3][%mdl 32]} Qc7 {[%emt 0:01:24]} 11. Nf1 {[%emt 0:01:23]} O-O {[%emt 0:00:34]} 12. Ng3 {[%emt 0:01:27]} Rac8 {[%emt 0:01:57]} 13. Bf4 {[%emt 0:09:36]} Rfe8 {[%emt 0:00:41]} 14. Rc1 {[%emt 0:00:12]} Bf8 {[%emt 0:05:35]} 15. d4 {[%emt 0:01:32]} e5 {[%emt 0:00:46]} 16. Bd2 {[%emt 0:02:43]} g6 {[%emt 0:18:06]} 17. d5 {[%emt 0:04:42][%cal Oc3c4]} c4 {[%emt 0:02:34]} 18. h3 {[%emt 0:02:18]} a5 {[%emt 0:02:22]} 19. Be3 {[%emt 0:06:38]} Rb8 {[%emt 0:12:46]} 20. Qd2 {[%emt 0:03:22]} Rec8 {[%emt 0:02:43]} 21. a3 {[%emt 0:16:25]} Ba8 {[%emt 0:09:55]} 22. Ra1 {[%emt 0:01:02]} Nc5 {[%emt 0:01:39]} 23. Bh6 {[%emt 0:06:45]} Bxh6 {[%emt 0:02:29]} 24. Qxh6 {[%emt 0:00:08]} Qd8 {[%emt 0:00:33]} 25. Re3 {[%emt 0:03:05][%cal Be1e3,Be3f3,Bf3f6][%mdl 32]} Ncd7 {[%emt 0:02:51]} 26. Nh2 {[%emt 0:02:05]} Kh8 {[%emt 0:01:33] ...Ng8 is the strong threat.} 27. Rf3 {[%emt 0:00:32]} b4 {[%emt 0:02:07]} (27... Qe7 $11 {remains equal.}) 28. axb4 $16 {[%emt 0:00:08] White is more active.} axb4 {[%emt 0:00:05]} 29. Ba4 $40 {[%emt 0:01:37][%mdl 128] Hoping for cxb4. White has some attack.} Nc5 $2 {[%emt 0:05:14][%mdl 8192] [#] Loses the game.} (29... bxc3 $14 30. bxc3 Ng8) 30. Rxf6 $1 $18 {[%emt 0:00:31][%mdl 512]} Rc7 {[%emt 0:01:15] [#]} (30... bxc3 31. bxc3) 31. Bd1 $1 {[%emt 0:01:48]} Nd3 {[%emt 0:00:33]} (31... bxc3 32. bxc3) 32. Ng4 {[%emt 0:00:56]} Nxb2 {[%emt 0:01:39]} 33. cxb4 {[%emt 0:00:14]} Nxd1 {[%emt 0:01:20]} 34. Rxd1 {[%emt 0:00:06]} c3 {[%emt 0:00:04]} 35. Rc1 {[%emt 0:00:26]} Rxb4 {[%emt 0:00:18] [#]} 36. Rxd6 $3 {[%emt 0:00:23][%mdl 512]} Qxd6 {[%emt 0:01:10] [#]} (36... Qg8 37. Nf6) 37. Nf6 $1 {[%emt 0:00:12][%mdl 512] Weighted Error Value: White=0.15 (very precise) /Black=0.63.  Loses game:     	---       	Black=1      Mistake:       	---       	Black=1      Inaccurate:     	White=1     	---        OK:         	White=6     	Black=7      Brilliant:      	White=1     	---} 1-0